[Event "Polish Youth G16 Championship 2023"]
[Site "Jastrzebia Gora"]
[Date "2023.03.13"]
[Round "2.12"]
[White "Sprzeczka, Emilia"]
[Black "Siekanska, Maria"]
[Result "0-1"]
[ECO "B22"]
[WhiteElo "1887"]
[BlackElo "1996"]
[Annotator "TA"]
[PlyCount "78"]
[EventDate "2023.03.11"]
[EventType "swiss"]
[EventCountry "POL"]
[SourceTitle "playchess.com"]
[Source "ChessBase"]
[SourceQuality "1"]
[TimeControl "40/5400+30:1800+30"]

{[%evp 16,78,0,9,2,14,14,12,49,35,60,67,177,0,0,11,42,37,172,155,233,120,125,113,233,158,202,154,150,120,120,114,123,131,235,240,250,258,233,171,222,223,227,225,229,221,215,0,225,220,250,241,320,281,320,304,376,280,300,295,270,179,185,21,10]} 1. e4 {[%emt 0:00:03][%cal Be2e4,Be4e5][%mdl 32]} c5 {[%emt 0:00:03]} 2. c3 {[%emt 0:00:05]} Nf6 {[%emt 0:00:05]} 3. e5 {[%emt 0:00:04]} Nd5 {[%emt 0:00:00]} 4. Nf3 {[%emt 0:00:00]} d6 {[%emt 0:00:00]} 5. exd6 {[%emt 0:00:00]} e6 {[%emt 0:00:00]} 6. g3 {[%emt 0:00:00]} Bxd6 {[%emt 0:00:02]} 7. Bg2 {[%emt 0:00:00]} O-O {[%emt 0:00:10]} 8. O-O {[%emt 0:00:02]} Nc6 {[%emt 0:00:07]} 9. d4 {[%emt 0:00:17]} Qc7 {[%emt 0:08:04] B22: Sicilian: 2 c3.} 10. Na3 {[%emt 0:24:58]} a6 {[%emt 0:14:13] Inhibits Nb5.} 11. Nc4 {[%emt 0:04:15] [#]} Rd8 $146 {[%emt 0:03:15]} ({Predecessor:} 11... Be7 12. Ne3 Nf6 13. d5 Rd8 14. c4 exd5 15. cxd5 Nb4 16. Ng5 h6 17. a3 hxg5 18. axb4 cxb4 {0-1 Kamsky,G (2723)-Mamedyarov,S (2742) Moscow Tal Memorial Blitz 2008 (28)}) 12. Nxd6 {[%emt 0:05:29]} Qxd6 {[%emt 0:00:11]} 13. Re1 {[%emt 0:07:13]} b5 {[%emt 0:03:59]} ({Black should play} 13... h6 $14) 14. Ne5 $2 {[%emt 0:04:27]} (14. Ng5 $1 $18 {aiming for Qh5.} Nf6 15. Bf4) 14... Bb7 $11 {[%emt 0:03:07]} 15. Qh5 {[%emt 0:06:13]} Qf8 {[%emt 0:13:03]} (15... Nxe5 {simplifies} 16. dxe5 Qf8 17. g4 Rd7) 16. Ng4 {[%emt 0:10:27][%cal Og4h6]} (16. Be4 $2 Nf6 17. Qh4 Nxe4 18. Qxe4 cxd4 19. Nxc6 dxc3 $17) 16... Kh8 {[%emt 0:14:51]} ({Better is} 16... f5 $14) 17. dxc5 $18 {[%emt 0:07:11] And now Bg5 would win.} f5 {[%emt 0:11:02]} (17... Nce7 $16 18. Ne5 Kg8) 18. Ne5 {[%emt 0:14:14]} (18. Rxe6 $18 {[%cal Og4h6] Black must now prevent Nh6!} Nc7 19. Ne5 (19. Rxc6 Rd1+ 20. Bf1 fxg4 $11) 19... Nxe5 20. Rxe5 Bxg2 21. Kxg2) 18... Nxe5 $16 {[%emt 0:04:10]} 19. Rxe5 {[%emt 0:00:08]} Qxc5 (19... Nf6 $16 20. Qe2 Bxg2 21. Kxg2 Nd7) 20. Rxe6 {[%emt 0:04:24]} Nf6 {[%emt 0:05:50]} 21. Be3 {[%emt 0:01:57] This pair of bishops is nice.} Qc4 {[%emt 0:01:13]} 22. Qxf5 {[%emt 0:02:56]} Bc8 {[%emt 0:00:45]} 23. Bxa8 {[%emt 0:00:41][%cal Oa8d5] Hoping for Bd5!} Bxe6 {[%emt 0:00:07]} 24. Qf3 {[%emt 0:00:28] Bd4 is the strong threat.} Qc8 {[%emt 0:02:51]} (24... Nd5 $16 {might work better.}) 25. Bb7 $18 {[%emt 0:01:13]} Qd7 {[%emt 0:00:44]} 26. Bc6 {[%emt 0:01:20] Repels Nd5} (26. Bxa6 Bd5 27. Qe2 Bc4 $11) 26... Qc8 {[%emt 0:00:36]} 27. Bb6 {[%emt 0:02:49]} Rd6 {[%emt 0:01:55]} (27... Rd2 $142 28. Bb7 Qd7) 28. Bb7 {[%emt 0:00:25]} Qd7 {[%emt 0:00:34]} 29. Bd4 {[%emt 0:01:00]} Bg4 {[%emt 0:02:05]} 30. Qg2 {[%emt 0:00:28]} Bh3 {[%emt 0:00:51]} 31. Qf3 {[%emt 0:00:17]} Bg4 {[%emt 0:00:13] [#]} 32. Qh1 {[%emt 0:00:27]} Qf5 {[%emt 0:04:50]} 33. Re1 {[%emt 0:00:56]} h5 {[%emt 0:00:36]} 34. h4 {[%emt 0:01:20]} b4 {[%emt 0:04:47]} 35. Bxf6 {[%emt 0:00:48]} Qxf6 {[%emt 0:00:22]} 36. Qe4 {[%emt 0:01:01] Threatens to win with Qe8+.} (36. cxb4 Rd4 37. a3 g6 $18) 36... bxc3 {[%emt 0:01:31]} 37. Qe8+ {[%emt 0:00:19]} Kh7 {[%emt 0:00:01]} 38. Be4+ {[%emt 0:00:21]} g6 {[%emt 0:00:50] [#]} 39. Bxg6+ $2 {[%emt 0:00:00]} Kh6 $1 {[%emt 0:00:00][%mdl 32768] Weighted Error Value: White=0.45/Black=0.35. Sensor Board Error (Ke4/e5)?} (39... Qxg6 $2 40. Re7+ $18 (40. bxc3 $2 {perishes.} Qxe8 41. Rxe8 Rd1+ 42. Kg2 Ra1 $19) (40. bxc3 $2 {too greedy.} Qxe8 41. Rxe8 Rd1+ 42. Kg2 Ra1 $19)) 0-1

[Event "Polish Youth G16 Championship 2023"]
[Site "Jastrzebia Gora"]
[Date "2023.03.13"]
[Round "2.13"]
[White "Nieckarz, Maja"]
[Black "Biniak, Zuzanna"]
[Result "0-1"]
[ECO "B70"]
[WhiteElo "1493"]
[BlackElo "1457"]
[Annotator "NA RC COMBH"]
[PlyCount "102"]
[EventDate "2023.03.11"]
[EventType "swiss"]
[EventCountry "POL"]
[SourceTitle "playchess.com"]
[Source "ChessBase"]
[SourceQuality "1"]
[TimeControl "40/5400+30:1800+30"]

1. e4 {[%emt 0:00:03]} c5 {[%emt 0:00:05]} 2. Nf3 {[%emt 0:00:05]} d6 {[%emt 0:00:05]} 3. d4 {[%emt 0:00:05]} cxd4 {[%emt 0:00:05]} 4. Nxd4 {[%emt 0:00:05]} Nf6 {[%emt 0:00:09]} 5. Nc3 {[%emt 0:00:08]} g6 6. Bc4 {[%emt 0:00:08]} Bg7 {[%emt 0:00:29]} 7. Bb3 {[%emt 0:00:08]} Bd7 {[%emt 0:02:31]} 8. h3 {[%emt 0:00:40]} h5 {[%emt 0:00:44]} 9. Be3 {[%emt 0:00:25]} Nc6 {[%emt 0:00:17]} 10. O-O {[%emt 0:00:50]} a6 {[%emt 0:00:59]} 11. Re1 {[%emt 0:02:09]} Na5 {[%emt 0:05:51]} 12. Qd2 {[%emt 0:00:37]} Nxb3 {[%emt 0:00:21]} 13. cxb3 {[%emt 0:00:23]} b5 {[%emt 0:03:49]} 14. Bg5 {[%emt 0:01:53]} O-O {[%emt 0:04:06]} 15. Nd5 {[%emt 0:01:40]} Nxd5 {[%emt 0:09:39]} 16. exd5 {[%emt 0:00:07]} Re8 {[%emt 0:04:14]} 17. Re4 {[%emt 0:03:20]} Qb6 {[%emt 0:09:38]} 18. Rae1 {[%emt 0:02:19]} Be5 {[%emt 0:07:25]} 19. Nf3 {[%emt 0:04:13]} f6 {[%emt 0:04:33]} 20. Bh6 {[%emt 0:12:29]} Bf5 {[%emt 0:01:45]} 21. R4e3 {[%emt 0:01:32]} Rac8 {[%emt 0:02:59]} 22. Nxe5 {[%emt 0:01:27]} dxe5 {[%emt 0:00:30]} 23. Rc3 {[%emt 0:08:28]} Red8 24. Rec1 {[%emt 0:05:17]} Qd6 {[%emt 0:10:16]} 25. Rc6 {[%emt 0:02:54]} Rxc6 26. Rxc6 {[%emt 0:00:15]} Qxd5 {[%emt 0:07:52]} 27. Qxd5+ {[%emt 0:00:13]} Rxd5 {[%emt 0:00:04]} 28. Rxa6 {[%emt 0:00:10]} g5 {[%emt 0:05:38]} 29. h4 {[%emt 0:02:29]} gxh4 {[%emt 0:00:30]} 30. a4 {[%emt 0:03:05]} Bc2 {[%emt 0:02:05]} 31. a5 {[%emt 0:00:41]} Bxb3 {[%emt 0:00:18]} 32. Ra8+ {[%emt 0:00:09]} Kf7 {[%emt 0:00:06]} 33. Rf8+ {[%emt 0:01:54]} Ke6 {[%emt 0:00:21]} 34. a6 {[%emt 0:00:12]} Rd1+ {[%emt 0:00:55]} 35. Kh2 {[%emt 0:00:08]} Ra1 {[%emt 0:00:45]} 36. Ra8 {[%emt 0:00:08]} Bd5 {[%emt 0:01:02]} 37. Ra7 {[%emt 0:00:05]} Ra2 {[%emt 0:02:11]} 38. Be3 {[%emt 0:00:31]} Rxb2 {[%emt 0:02:30]} 39. Bc5 {[%emt 0:00:23]} Ra2 {[%emt 0:01:39]} 40. Rxe7+ {[%emt 0:00:00]} Kf5 {[%emt 0:00:00]} 41. a7 {[%emt 0:00:16]} b4 {[%emt 0:02:07]} 42. Rd7 {[%emt 0:04:12]} Be4 {[%emt 0:02:41]} 43. Bxb4 {[%emt 0:08:09]} Rxf2 {[%emt 0:01:48]} 44. Rg7 {[%emt 0:02:58]} Rf4 {[%emt 0:10:41]} 45. Rc7 Rg4 46. Rc4 {[%emt 0:17:47]} Bd5 {[%emt 0:07:17]} 47. Rxg4 {[%emt 0:01:28]} hxg4 {[%emt 0:00:23]} 48. Be1 {[%emt 0:02:53]} g3+ {[%emt 0:02:04]} 49. Kh3 {[%emt 0:00:15]} Kg5 {[%emt 0:00:13]} 50. Bd2+ {[%emt 0:00:13]} Kh5 {[%emt 0:00:07]} 51. Bc3 {[%emt 0:00:19]} Be6# {[%emt 0:00:07]} 0-1

[Event "Polish Youth G16 Championship 2023"]
[Site "Jastrzebia Gora"]
[Date "2023.03.13"]
[Round "2.14"]
[White "Krzysztynska, Maria"]
[Black "Oborska, Magda"]
[Result "1-0"]
[ECO "C28"]
[WhiteElo "1335"]
[BlackElo "1613"]
[Annotator "NA RC COMBH"]
[PlyCount "45"]
[EventDate "2023.03.11"]
[EventType "swiss"]
[EventCountry "POL"]
[SourceTitle "playchess.com"]
[Source "ChessBase"]
[SourceQuality "1"]
[TimeControl "40/5400+30:1800+30"]

1. e4 {[%emt 0:04:53]} e5 {[%emt 0:00:15]} 2. Nc3 {[%emt 0:00:58]} Nc6 {[%emt 0:00:19]} 3. Bc4 {[%emt 0:01:31]} Nf6 {[%emt 0:00:28]} 4. d3 {[%emt 0:01:23]} h6 {[%emt 0:00:10]} 5. f4 {[%emt 0:05:03]} Bb4 {[%emt 0:06:07]} 6. Nge2 {[%emt 0:13:50]} O-O {[%emt 0:04:19]} 7. O-O {[%emt 0:05:24]} Ng4 {[%emt 0:16:28]} 8. Qe1 {[%emt 0:16:32]} Ba5 {[%emt 0:31:26]} 9. Qg3 {[%emt 0:11:44]} Bb6+ {[%emt 0:10:16]} 10. Kh1 {[%emt 0:02:11]} d6 {[%emt 0:03:32]} 11. f5 {[%emt 0:02:58]} Nf2+ {[%emt 0:02:27]} 12. Rxf2 {[%emt 0:01:28]} Bxf2 {[%emt 0:00:04]} 13. Qxf2 {[%emt 0:02:07]} Kh7 {[%emt 0:06:30]} 14. Bd2 Ne7 {[%emt 0:00:41]} 15. Rf1 {[%emt 0:02:43]} Ng8 16. Qg3 {[%emt 0:07:20]} Nf6 {[%emt 0:02:06]} 17. Nd5 {[%emt 0:04:29]} Nxd5 {[%emt 0:07:15]} 18. Bxd5 {[%emt 0:00:22]} c6 {[%emt 0:00:14]} 19. f6 {[%emt 0:06:35]} g6 {[%emt 0:02:44]} 20. Qh4 {[%emt 0:00:45]} h5 {[%emt 0:02:01]} 21. Qg5 {[%emt 0:00:17]} Rh8 {[%emt 0:00:38]} 22. Qh6+ {[%emt 0:00:16]} Kg8 {[%emt 0:00:03]} 23. Qg7# {[%emt 0:00:11]} 1-0

[Event "Polish Youth G16 Championship 2023"]
[Site "Jastrzebia Gora"]
[Date "2023.03.13"]
[Round "2.15"]
[White "Niedorys, Karolina"]
[Black "Kaczmarek, Paulina"]
[Result "0-1"]
[ECO "B34"]
[WhiteElo "1458"]
[BlackElo "1317"]
[Annotator "NA RC COMBH"]
[PlyCount "102"]
[EventDate "2023.03.11"]
[EventType "swiss"]
[EventCountry "POL"]
[SourceTitle "playchess.com"]
[Source "ChessBase"]
[SourceQuality "1"]
[TimeControl "40/5400+30:1800+30"]

1. e4 {[%emt 0:00:03]} c5 {[%emt 0:00:05]} 2. Nf3 {[%emt 0:00:09]} Nc6 {[%emt 0:00:26]} 3. d4 {[%emt 0:00:12]} cxd4 {[%emt 0:00:04]} 4. Nxd4 {[%emt 0:00:04]} g6 {[%emt 0:00:14]} 5. Nc3 {[%emt 0:02:24]} Bg7 {[%emt 0:00:17]} 6. Be3 {[%emt 0:01:03]} Nf6 {[%emt 0:00:10]} 7. f3 {[%emt 0:01:48]} O-O {[%emt 0:00:23]} 8. Qd2 {[%emt 0:06:26]} d5 {[%emt 0:00:50]} 9. exd5 {[%emt 0:03:00]} Nxd5 {[%emt 0:00:21]} 10. Nxc6 {[%emt 0:01:07]} bxc6 {[%emt 0:00:09]} 11. Bd4 {[%emt 0:01:04]} e5 {[%emt 0:00:24]} 12. Bc5 {[%emt 0:00:06]} Re8 {[%emt 0:00:27]} 13. Ne4 {[%emt 0:01:17]} f5 {[%emt 0:00:52]} 14. Nd6 {[%emt 0:09:28]} Bf8 {[%emt 0:00:50]} 15. Bb5 {[%emt 0:21:15]} Bxd6 {[%emt 0:19:28]} 16. Bxc6 {[%emt 0:01:12]} Bxc5 {[%emt 0:00:59]} 17. Qxd5+ {[%emt 0:15:40]} Qxd5 {[%emt 0:01:45]} 18. Bxd5+ {[%emt 0:01:03]} Be6 {[%emt 0:00:01]} 19. Bxa8 {[%emt 0:00:12]} Rxa8 {[%emt 0:00:07]} 20. c3 {[%emt 0:04:05]} Rd8 {[%emt 0:01:19]} 21. b3 {[%emt 0:04:11]} Rd3 {[%emt 0:03:26]} 22. Rc1 {[%emt 0:02:16]} e4 {[%emt 0:03:26]} 23. fxe4 {[%emt 0:02:37]} fxe4 {[%emt 0:02:51]} 24. h3 {[%emt 0:01:45]} a5 {[%emt 0:03:02]} 25. Ke2 {[%emt 0:03:51]} Rg3 {[%emt 0:00:44]} 26. Rh2 {[%emt 0:01:53]} a4 {[%emt 0:02:34]} 27. bxa4 {[%emt 0:04:30]} Bc4+ {[%emt 0:00:06]} 28. Kd1 {[%emt 0:03:15]} Bg1 {[%emt 0:02:25]} 29. Rh1 {[%emt 0:00:08]} Rxg2 {[%emt 0:00:40]} 30. Rc2 {[%emt 0:00:18]} Rg3 {[%emt 0:00:06]} 31. Rd2 {[%emt 0:03:17]} Bb6 {[%emt 0:04:13]} 32. a5 {[%emt 0:04:26]} Bxa5 {[%emt 0:01:42]} 33. Rd4 {[%emt 0:00:05]} Bd3 {[%emt 0:00:42]} 34. c4 {[%emt 0:00:37]} Rg2 {[%emt 0:01:10]} 35. Rd5 {[%emt 0:02:17]} Rxa2 {[%emt 0:00:19]} 36. Rxa5 {[%emt 0:00:16]} Rxa5 {[%emt 0:00:08]} 37. Kd2 {[%emt 0:00:45]} Bxc4 {[%emt 0:00:13]} 38. Ke3 {[%emt 0:00:19]} Kg7 {[%emt 0:00:11]} 39. Rc1 {[%emt 0:00:25]} Bd3 {[%emt 0:00:10]} 40. Rc7+ {[%emt 0:00:00]} Kh6 {[%emt 0:00:00]} 41. h4 {[%emt 0:00:41]} Rh5 {[%emt 0:00:45]} 42. Kf2 {[%emt 0:00:15]} Rxh4 {[%emt 0:00:26]} 43. Kg3 {[%emt 0:00:06]} g5 {[%emt 0:00:41]} 44. Rc6+ {[%emt 0:00:12]} Kh5 {[%emt 0:00:03]} 45. Rf6 {[%emt 0:00:26]} Rf4 {[%emt 0:00:38]} 46. Re6 {[%emt 0:00:18]} Bc4 {[%emt 0:01:00]} 47. Rd6 {[%emt 0:00:15]} Rf3+ {[%emt 0:00:44]} 48. Kh2 {[%emt 0:00:07]} Kg4 {[%emt 0:01:43]} 49. Kg2 {[%emt 0:00:25]} e3 {[%emt 0:00:20]} 50. Rh6 {[%emt 0:01:10]} e2 {[%emt 0:01:30]} 51. Rh1 {[%emt 0:00:09]} Rf1 {[%emt 0:00:42]} 0-1

[Event "Polish Youth G16 Championship 2023"]
[Site "Jastrzebia Gora"]
[Date "2023.03.13"]
[Round "2.16"]
[White "Pniewska, Beata"]
[Black "Idzior, Izabela"]
[Result "1-0"]
[ECO "A13"]
[WhiteElo "1448"]
[BlackElo "1287"]
[Annotator "NA RC COMBH"]
[PlyCount "73"]
[EventDate "2023.03.11"]
[EventType "swiss"]
[EventCountry "POL"]
[SourceTitle "playchess.com"]
[Source "ChessBase"]
[SourceQuality "1"]
[TimeControl "40/5400+30:1800+30"]

1. c4 {[%emt 0:00:03]} e6 {[%emt 0:00:06]} 2. g3 {[%emt 0:00:08]} d5 {[%emt 0:00:09]} 3. Bg2 {[%emt 0:01:33]} Nf6 {[%emt 0:00:23]} 4. d4 {[%emt 0:01:02]} Bd7 {[%emt 0:01:08]} 5. Nc3 {[%emt 0:02:36]} Bc6 {[%emt 0:03:31]} 6. cxd5 {[%emt 0:02:56]} Bxd5 {[%emt 0:09:05]} 7. Nxd5 {[%emt 0:06:26]} exd5 {[%emt 0:02:48]} 8. Qb3 {[%emt 0:01:27]} Nc6 {[%emt 0:01:08]} 9. Qe3+ {[%emt 0:17:51]} Be7 {[%emt 0:01:51]} 10. Nf3 {[%emt 0:02:20]} Nb4 {[%emt 0:05:50]} 11. Qb3 {[%emt 0:00:40]} a5 {[%emt 0:04:07]} 12. Bf4 {[%emt 0:04:36]} O-O {[%emt 0:07:07]} 13. O-O {[%emt 0:01:03]} Re8 {[%emt 0:14:29]} 14. a3 {[%emt 0:04:44]} a4 {[%emt 0:00:14]} 15. Qc3 {[%emt 0:00:40]} Nc6 {[%emt 0:09:41]} 16. Rfd1 {[%emt 0:03:59]} Ne4 {[%emt 0:02:25]} 17. Qd3 {[%emt 0:00:58]} Na5 {[%emt 0:03:29]} 18. Rac1 {[%emt 0:09:26]} c6 {[%emt 0:03:46]} 19. Ne5 {[%emt 0:02:02]} Nb3 {[%emt 0:03:40]} 20. Rc2 {[%emt 0:07:27]} f6 {[%emt 0:07:56]} 21. Bxe4 {[%emt 0:01:37]} dxe4 {[%emt 0:00:44]} 22. Qc4+ {[%emt 0:00:36]} Qd5 {[%emt 0:00:57]} 23. Nd7 {[%emt 0:03:04]} Ra6 {[%emt 0:09:21]} 24. Qxd5+ {[%emt 0:04:54]} cxd5 {[%emt 0:00:07]} 25. Rc7 {[%emt 0:01:56]} Na5 {[%emt 0:02:50]} 26. Nc5 {[%emt 0:02:01]} Bxc5 {[%emt 0:00:56]} 27. Rxc5 {[%emt 0:00:18]} Nc4 {[%emt 0:03:05]} 28. Rxd5 {[%emt 0:01:26]} Nxb2 {[%emt 0:01:01]} 29. Rb1 {[%emt 0:00:34]} Nc4 {[%emt 0:00:56]} 30. Rxb7 {[%emt 0:01:45]} Nxa3 {[%emt 0:00:11]} 31. Rdd7 {[%emt 0:00:18]} g5 {[%emt 0:00:34]} 32. Bd6 {[%emt 0:00:40]} Rxd6 {[%emt 0:01:06]} 33. Rxd6 {[%emt 0:00:07]} Ra8 {[%emt 0:00:36]} 34. Rdd7 {[%emt 0:01:38]} Nc4 {[%emt 0:01:31]} 35. Rxh7 {[%emt 0:00:37]} a3 {[%emt 0:00:18]} 36. Rbg7+ {[%emt 0:00:31]} Kf8 {[%emt 0:00:05]} 37. Rh8+ {[%emt 0:00:14]} 1-0

[Event "Polish Youth G16 Championship 2023"]
[Site "Jastrzebia Gora"]
[Date "2023.03.13"]
[Round "2.17"]
[White "Zgoda, Aleksandra"]
[Black "Nowak, Zuzanna"]
[Result "0-1"]
[ECO "D00"]
[WhiteElo "1308"]
[BlackElo "1427"]
[Annotator "NA RC COMBH"]
[PlyCount "52"]
[EventDate "2023.03.11"]
[EventType "swiss"]
[EventCountry "POL"]
[SourceTitle "playchess.com"]
[Source "ChessBase"]
[SourceQuality "1"]
[TimeControl "40/5400+30:1800+30"]

1. d4 d5 2. Bf4 Nf6 3. e3 g6 4. Nf3 Bg7 5. Nc3 c6 6. Bd3 Nbd7 7. Ne5 Nh5 8. g4 Nxf4 9. exf4 Qb6 10. Ne2 Nxe5 11. fxe5 Bxg4 12. Rb1 O-O 13. c3 f6 14. exf6 Bxf6 15. Rg1 Bh5 16. Qd2 e5 17. Ng3 Bg4 18. Qh6 e4 19. Nxe4 Bg7 20. Qg5 Bf5 21. Nc5 Bxd3 22. Nxd3 Rae8+ 23. Kd2 Rf5 24. Qg3 Qa6 25. Nb4 Qe2+ 26. Kc1 Bh6+ 0-1

[Event "Polish Youth G16 Championship 2023"]
[Site "Jastrzebia Gora"]
[Date "2023.03.13"]
[Round "2.18"]
[White "Michalska, Anna-Maria"]
[Black "Makarec, Anna"]
[Result "1/2-1/2"]
[ECO "E21"]
[WhiteElo "1417"]
[BlackElo "1271"]
[Annotator "NA RC COMBH"]
[PlyCount "104"]
[EventDate "2023.03.11"]
[EventType "swiss"]
[EventCountry "POL"]
[SourceTitle "playchess.com"]
[Source "ChessBase"]
[SourceQuality "1"]
[TimeControl "40/5400+30:1800+30"]

1. d4 Nf6 2. c4 e6 3. Nc3 Bb4 4. Nf3 b6 5. g3 Bb7 6. Bg2 O-O 7. O-O d5 8. cxd5 exd5 9. Bg5 h6 10. Bxf6 Qxf6 11. Rc1 Nd7 12. Qa4 Bxc3 13. Rxc3 Qd6 14. b4 c6 15. Rfc1 b5 16. Qb3 a5 17. a3 Nb6 18. Ne5 Nc4 19. Nd3 axb4 20. Qxb4 Qf6 21. Nc5 Bc8 22. e3 Qf5 23. Ra1 Nd2 24. f4 Qh5 25. Kf2 Bh3 26. Qb2 Bxg2 27. Kxg2 Qf3+ 28. Kg1 Qe2 29. Rb1 b4 30. Rd3 Nf3+ 31. Kh1 Qxb2 32. Rxb2 bxa3 33. Ra2 Rfb8 34. Nb3 Ne1 35. Rc3 Nc2 36. Nc1 Nb4 37. Raxa3 Rxa3 38. Rxa3 Nc2 39. Rc3 Rb2 40. Nd3 Rb1+ 41. Kg2 Nxe3+ 42. Kf3 Nc4 43. Ne5 Nxe5+ 44. dxe5 Rb6 45. Ke3 Kf8 46. Kd4 Ke7 47. Ra3 Rb4+ 48. Kc5 Rc4+ 49. Kb6 c5 50. f5 Re4 51. Ra7+ Kf8 52. Ra8+ Ke7 1/2-1/2

[Event "Polish Youth G16 Championship 2023"]
[Site "Jastrzebia Gora"]
[Date "2023.03.13"]
[Round "2.19"]
[White "Lach, Alicja"]
[Black "Predkiewicz, Paulina"]
[Result "0-1"]
[ECO "C44"]
[WhiteElo "1231"]
[BlackElo "1402"]
[Annotator "NA RC COMBH"]
[PlyCount "108"]
[EventDate "2023.03.11"]
[EventType "swiss"]
[EventCountry "POL"]
[SourceTitle "playchess.com"]
[Source "ChessBase"]
[SourceQuality "1"]
[TimeControl "40/5400+30:1800+30"]

1. e4 e5 {[%emt 0:00:04]} 2. Nf3 {[%emt 0:00:04]} Nc6 {[%emt 0:00:08]} 3. d4 {[%emt 0:00:02]} exd4 {[%emt 0:00:06]} 4. Nxd4 {[%emt 0:00:04]} Qf6 5. Nxc6 {[%emt 0:00:58]} Bc5 {[%emt 0:00:30]} 6. Qd2 {[%emt 0:00:06]} dxc6 {[%emt 0:00:12]} 7. Bd3 {[%emt 0:00:06]} Be6 {[%emt 0:00:08]} 8. Nc3 O-O-O {[%emt 0:00:39]} 9. O-O {[%emt 0:00:11]} Qe5 {[%emt 0:00:31]} 10. Qg5 {[%emt 0:02:22]} Qxg5 {[%emt 0:00:14]} 11. Bxg5 {[%emt 0:00:06]} f6 {[%emt 0:00:09]} 12. Bd2 {[%emt 0:00:30]} Ne7 {[%emt 0:00:16]} 13. a3 {[%emt 0:00:42]} Ng6 {[%emt 0:02:00]} 14. Na4 {[%emt 0:23:56]} Bd4 {[%emt 0:04:11]} 15. Bc3 {[%emt 0:04:50]} Ne5 {[%emt 0:06:36]} 16. Rad1 {[%emt 0:07:32]} Bg4 {[%emt 0:23:10]} 17. Bxd4 {[%emt 0:20:15]} Rxd4 {[%emt 0:04:22]} 18. f3 {[%emt 0:00:37]} Rxa4 {[%emt 0:02:16]} 19. fxg4 {[%emt 0:03:04]} Nxg4 {[%emt 0:00:10]} 20. Rfe1 {[%emt 0:11:18]} Rd8 {[%emt 0:07:54]} 21. e5 {[%emt 0:05:29]} Re8 {[%emt 0:01:03]} 22. e6 {[%emt 0:01:41]} g6 {[%emt 0:01:18]} 23. c3 {[%emt 0:03:58]} Ne5 {[%emt 0:01:11]} 24. Bc2 {[%emt 0:00:16]} Rg4 {[%emt 0:00:30]} 25. Re3 {[%emt 0:05:14]} Rxe6 {[%emt 0:01:25]} 26. Bb3 {[%emt 0:00:50]} Re8 27. Rd4 f5 {[%emt 0:09:26]} 28. Kf1 {[%emt 0:01:31]} c5 {[%emt 0:05:35]} 29. Rxg4 {[%emt 0:06:28]} fxg4 30. Bd1 {[%emt 0:00:39]} Kd8 {[%emt 0:00:28]} 31. Re4 {[%emt 0:00:57]} Nd3 {[%emt 0:04:01]} 32. Rxe8+ {[%emt 0:00:27]} Kxe8 {[%emt 0:00:06]} 33. b3 {[%emt 0:00:09]} h5 {[%emt 0:00:26]} 34. Bc2 {[%emt 0:00:21]} Ne5 {[%emt 0:00:30]} 35. Kf2 {[%emt 0:00:30]} Ke7 {[%emt 0:00:58]} 36. Be4 {[%emt 0:00:12]} c6 {[%emt 0:00:30]} 37. Ke3 Ke6 {[%emt 0:03:50]} 38. g3 {[%emt 0:01:55]} g5 {[%emt 0:00:36]} 39. Bg2 {[%emt 0:00:15]} b5 {[%emt 0:02:01]} 40. Be4 {[%emt 0:00:00]} a5 {[%emt 0:00:00]} 41. Ke2 {[%emt 0:01:49]} b4 {[%emt 0:04:11]} 42. axb4 {[%emt 0:02:46]} cxb4 {[%emt 0:00:30]} 43. c4 {[%emt 0:00:30]} h4 {[%emt 0:02:52]} 44. Ke3 {[%emt 0:00:55]} c5 {[%emt 0:00:47]} 45. Bb7 {[%emt 0:02:35]} Kd6 {[%emt 0:12:26]} 46. Be4 {[%emt 0:01:25]} Nf3 {[%emt 0:10:20]} 47. gxh4 {[%emt 0:03:11]} gxh4 {[%emt 0:00:20]} 48. h3 {[%emt 0:00:33]} Ne5 {[%emt 0:00:45]} 49. hxg4 {[%emt 0:01:00]} Nxg4+ {[%emt 0:00:10]} 50. Kf4 {[%emt 0:00:41]} Nf2 {[%emt 0:00:25]} 51. Bc2 {[%emt 0:00:42]} Ke6 {[%emt 0:06:03]} 52. Bf5+ {[%emt 0:09:41]} Kf6 {[%emt 0:00:32]} 53. Bd7 {[%emt 0:02:34]} Nd3+ {[%emt 0:01:43]} 54. Kg4 {[%emt 0:00:30]} Ne5+ {[%emt 0:00:30]} 0-1

[Event "Polish Youth G16 Championship 2023"]
[Site "Jastrzebia Gora"]
[Date "2023.03.13"]
[Round "2.20"]
[White "Bauer, Maja"]
[Black "Racis, Dominika"]
[Result "1-0"]
[ECO "B15"]
[WhiteElo "1383"]
[BlackElo "1201"]
[Annotator "NA RC COMBH"]
[PlyCount "53"]
[EventDate "2023.03.11"]
[EventType "swiss"]
[EventCountry "POL"]
[SourceTitle "playchess.com"]
[Source "ChessBase"]
[SourceQuality "1"]
[TimeControl "40/5400+30:1800+30"]

1. e4 {[%emt 0:00:03]} c6 {[%emt 0:00:11]} 2. d4 {[%emt 0:00:27]} d5 {[%emt 0:00:08]} 3. Nd2 {[%emt 0:00:37]} dxe4 {[%emt 0:00:51]} 4. Nxe4 {[%emt 0:00:10]} Nf6 {[%emt 0:00:54]} 5. Ng3 {[%emt 0:03:36]} e6 {[%emt 0:00:41]} 6. Bf4 {[%emt 0:03:35]} Nbd7 {[%emt 0:08:55]} 7. Nf3 {[%emt 0:03:32]} c5 8. Be5 {[%emt 0:17:45]} Qa5+ {[%emt 0:24:28]} 9. c3 {[%emt 0:05:08]} Nxe5 {[%emt 0:10:12]} 10. dxe5 {[%emt 0:10:30]} Nd5 {[%emt 0:05:21]} 11. Qb3 {[%emt 0:10:04]} a6 {[%emt 0:07:34]} 12. Bc4 {[%emt 0:06:20]} Nf4 {[%emt 0:02:35]} 13. O-O {[%emt 0:04:56]} b5 {[%emt 0:00:46]} 14. Be2 {[%emt 0:01:50]} c4 {[%emt 0:01:22]} 15. Bxc4 {[%emt 0:05:53]} Ng6 {[%emt 0:09:24]} 16. Bd3 {[%emt 0:03:41]} Bb7 {[%emt 0:04:27]} 17. Ne4 {[%emt 0:10:14]} Qc7 {[%emt 0:06:11]} 18. Rfe1 {[%emt 0:08:13]} Nxe5 {[%emt 0:00:59]} 19. Nxe5 {[%emt 0:00:35]} Qxe5 {[%emt 0:00:37]} 20. a4 {[%emt 0:00:56]} Bd5 {[%emt 0:03:04]} 21. Qc2 {[%emt 0:02:01]} b4 {[%emt 0:02:48]} 22. c4 {[%emt 0:00:42]} Bb7 {[%emt 0:01:12]} 23. c5 {[%emt 0:00:13]} Bxe4 {[%emt 0:00:27]} 24. Bxe4 {[%emt 0:00:20]} Qb8 {[%emt 0:04:21]} 25. Bc6+ {[%emt 0:00:40]} Ke7 {[%emt 0:00:07]} 26. Bxa8 {[%emt 0:00:07]} Qxa8 {[%emt 0:00:03]} 27. c6 {[%emt 0:00:13]} 1-0